bitfinex/quotes_ETHUSD_20240601
["timestamp","ask_amount","ask_price","bid_price","bid_amount"]
[1717277498248,2.62469,3810.0,3809.9,0.764579]
[1717277500411,2.62447,3810.3,3809.9,0.764579]
[1717277500725,2.62447,3810.3,3810.1,0.708]
[1717277502146,2.6247,3810.0,3809.3,2.62511]
[1717277502323,2.6247,3810.0,3809.9,0.708]
[1717277502640,2.6247,3810.0,3809.9,0.76430118]
[1717277514592,3.0,3811.0,3810.0,2.62461]
[1717277514758,5.4263,3811.2,3810.7,0.708]
[1717277514947,2.4263,3811.2,3810.7,0.708]
[1717277516086,2.62414,3810.8,3810.7,0.708]
[1717277516265,5.62414,3810.8,3810.7,0.708]
[1717277517783,5.62414,3810.8,3810.6,0.708]
[1717277517988,3.0,3810.7,3810.6,0.708]
[1717277518584,3.0,3810.7,3809.7,2.62487]
[1717277518585,2.62439,3810.4,3809.7,2.62487]
[1717277518762,2.62439,3810.4,3810.3,0.708]
[1717277520487,2.62419,3810.7,3810.3,0.708]
[1717277520688,2.62419,3810.7,3810.5,0.708]
[1717277522892,2.62419,3810.7,3810.6,0.0562941]
[1717277524721,2.62398,3811.0,3810.6,0.0562941]
[1717277525014,2.62398,3811.0,3810.7,0.708]
[1717277526619,2.62398,3811.0,3810.8,0.05608599]
[1717277526811,2.62398,3811.0,3810.7,0.708]
[1717277527010,2.62398,3811.0,3810.8,0.05608599]
[1717277527538,2.62398,3811.0,3810.9,0.05607821]
[1717277527905,2.62398,3811.0,3810.7,0.708]
[1717277528324,2.62398,3811.0,3810.8,0.05608599]
[1717277528836,2.62398,3811.0,3810.9,0.05607821]
[1717277529000,2.62398,3811.0,3810.7,0.708]
[1717277529204,2.62398,3811.0,3810.8,0.05608599]
[1717277529404,2.62398,3811.0,3810.7,0.708]
[1717277529605,2.62398,3811.0,3810.8,0.05608599]
[1717277529909,2.62398,3811.0,3810.7,0.708]
[1717277530110,2.62398,3811.0,3810.9,0.05607821]
[1717277530305,2.62398,3811.0,3810.8,0.05608599]
[1717277530507,2.62398,3811.0,3810.7,0.708]
[1717277530752,2.62398,3811.0,3810.9,0.05607821]
[1717277530956,2.62398,3811.0,3810.8,0.05608599]
[1717277531131,2.62398,3811.0,3810.7,0.708]
[1717277531634,2.62398,3811.0,3810.8,0.05608599]
[1717277531819,2.62398,3811.0,3810.7,0.708]
[1717277532142,2.62398,3811.0,3810.8,0.05608599]
[1717277532561,2.62398,3811.0,3810.7,0.708]
[1717277532858,2.62378,3811.3,3810.9,0.708]
[1717277533068,2.62378,3811.3,3811.2,0.708]
[1717277534322,2.62378,3811.3,3811.2,0.76381502]
[1717277554616,2.62378,3811.3,3811.2,0.05581502]
[1717277554816,2.62378,3811.3,3811.2,0.76381502]
[1717277573579,2.3326,3812.6,3811.2,3.38760502]
[1717277573747,2.62296,3812.5,3812.2,0.708]
[1717277577584,2.62316,3812.2,3812.1,0.708]
[1717277586527,2.62316,3812.2,3811.3,2.3862605]
[1717277586681,2.62316,3812.2,3812.1,0.708]
[1717277587696,2.62316,3812.2,3812.1,0.76215198]
[1717277590033,2.62295,3812.5,3812.1,0.76215198]
[1717277590334,2.62295,3812.5,3812.4,0.708]
[1717277590536,2.62295,3812.5,3812.1,0.05415198]
[1717277590725,2.62295,3812.5,3812.3,0.708]
[1717277591104,2.62295,3812.5,3812.4,0.05393957]
[1717277591716,2.62295,3812.5,3812.3,0.708]
[1717277592119,2.62295,3812.5,3812.4,0.05393957]
[1717277592646,2.62295,3812.5,3812.3,0.708]
[1717277592846,2.62295,3812.5,3812.4,0.05393957]
[1717277593003,2.62295,3812.5,3812.3,0.708]
[1717277593340,2.62295,3812.5,3812.4,0.05393957]
[1717277593706,2.62295,3812.5,3812.3,0.708]
[1717277594135,2.62295,3812.5,3812.4,0.05393957]
[1717277594542,2.62295,3812.5,3812.3,0.708]
[1717277594849,2.62295,3812.5,3812.4,0.05393957]
[1717277595070,2.62295,3812.5,3812.3,0.708]
[1717277595561,2.62295,3812.5,3812.4,0.05393957]
[1717277595744,2.62295,3812.5,3812.3,0.708]
[1717277595946,2.62295,3812.5,3812.4,0.05384821]
[1717277596147,2.62295,3812.5,3812.3,0.708]
[1717277596346,2.62295,3812.5,3812.4,0.05384821]
[1717277596548,2.62295,3812.5,3812.3,0.708]
[1717277596746,2.62241,3813.3,3812.4,2.10134821]
[1717277596960,12.48,3815.4,3812.4,2.10134821]
[1717277596961,2.62198,3813.9,3812.7,2.0475]
[1717277597137,2.62198,3813.9,3813.8,0.708]
[1717277597460,2.62198,3813.9,3813.8,0.76164812]
[1717277598165,2.62176,3814.3,3813.8,0.76164812]
[1717277598366,2.62176,3814.3,3814.1,0.708]
[1717277598681,2.62176,3814.3,3814.2,0.05361707]
[1717277600654,2.62176,3814.3,3814.2,0.708]
[1717277602284,2.62176,3814.3,3813.4,2.62229]
[1717277602493,2.62176,3814.3,3814.2,0.708]
[1717277602673,2.62176,3814.3,3813.5,0.52065041]
[1717277602984,2.62176,3814.3,3814.2,0.708]
[1717277607672,2.62176,3814.3,3814.0,0.708]
[1717277610589,2.62176,3814.3,3814.1,0.05316187]
[1717277610771,2.62176,3814.3,3814.2,0.708]
[1717277612591,2.62176,3814.3,3814.1,0.708]
[1717277613564,2.62176,3814.3,3814.2,0.0531541]
[1717277615159,2.62176,3814.3,3814.0,0.708]
[1717277615362,2.62176,3814.3,3814.1,0.05316187]
[1717277615583,2.62176,3814.3,3814.0,0.708]
[1717277615895,2.62176,3814.3,3814.2,0.0531541]
[1717277616073,2.62176,3814.3,3814.1,0.05316187]
[1717277616277,2.62176,3814.3,3813.3,4.66988]
[1717277616492,2.62176,3814.3,3814.2,0.0531541]
[1717277616669,2.62176,3814.3,3814.0,0.708]
[1717277616866,2.62176,3814.3,3814.2,0.0531541]
[1717277617089,2.62176,3814.3,3814.0,0.708]
[1717277617586,2.62176,3814.3,3814.1,0.05316187]
[1717277618765,2.62176,3814.3,3814.0,0.708]
[1717277618964,2.62176,3814.3,3814.1,0.05316187]
[1717277622464,2.62176,3814.3,3814.2,0.708]
[1717277624223,2.62176,3814.3,3813.4,1.198988]
[1717277624431,2.62176,3814.3,3814.2,0.0532517]
[1717277624722,2.62176,3814.3,3814.1,0.708]
[1717277625072,2.62176,3814.3,3814.2,0.05148851]
[1717277625273,2.62176,3814.3,3814.1,0.708]
[1717277625474,2.62176,3814.3,3814.2,0.05148851]
[1717277625692,2.62176,3814.3,3814.1,0.708]
[1717277626100,2.62176,3814.3,3814.2,0.05148851]
[1717277626413,2.62176,3814.3,3814.1,0.708]
[1717277626712,2.62176,3814.3,3814.2,0.05148851]
[1717277627009,2.62176,3814.3,3814.1,0.708]
[1717277627172,2.62176,3814.3,3814.2,0.05148851]
[1717277627614,2.4139,3814.9,3814.2,0.33218736]
[1717277627615,2.62152,3814.6,3814.2,0.33218736]
[1717277627793,2.62152,3814.6,3814.3,0.708]
[1717277628412,2.62152,3814.6,3814.4,0.05112337]
[1717277634422,2.62152,3814.6,3814.5,0.708]
[1717277634623,2.62152,3814.6,3814.5,0.75907467]
[1717277636268,2.62152,3814.6,3814.5,0.05107467]
[1717277640282,5.03521,3814.9,3814.5,0.05107467]
[1717277642545,5.03521,3814.9,3814.2,0.708]
[1717277642747,5.03521,3814.9,3814.6,0.05094097]
[1717277643081,5.03521,3814.9,3814.7,0.05093322]
[1717277643265,5.03521,3814.9,3814.3,0.708]
[1717277643585,5.03521,3814.9,3814.4,0.05095649]
[1717277646707,5.03521,3814.9,3814.4,0.75895649]
[1717277646904,5.03521,3814.9,3814.4,0.708]
[1717277647108,5.03521,3814.9,3814.5,0.05094873]
[1717277650201,5.03521,3814.9,3813.9,2.62197]
[1717277650404,5.03521,3814.9,3814.2,0.708]
[1717277650910,5.03521,3814.9,3814.3,0.05076278]
[1717277655810,5.03521,3814.9,3814.2,0.708]
[1717277656133,5.03521,3814.9,3814.3,0.05076593]
[1717277656826,2.4889,3814.8,3814.3,0.05076593]
[1717277659552,2.62131,3814.9,3814.3,0.75876593]
[1717277659908,2.62131,3814.9,3814.3,0.05076593]
[1717277660105,2.62131,3814.9,3814.3,0.708]
[1717277660309,2.62131,3814.9,3814.4,0.05075817]
[1717277660930,2.4889,3814.8,3814.4,0.05075817]
[1717277667962,2.62145,3814.7,3814.4,0.05075817]
[1717277668160,2.4889,3814.6,3814.4,0.05075817]
[1717277668359,2.4889,3814.6,3814.0,0.708]
[1717277668541,2.4889,3814.6,3814.5,0.05073781]
[1717277668745,2.4889,3814.6,3814.2,0.708]
[1717277669058,2.62158,3814.5,3814.2,0.708]
[1717277669252,2.62158,3814.5,3814.3,0.05075647]
[1717277669829,2.62158,3814.5,3814.0,0.708]
[1717277670142,2.62158,3814.5,3814.1,0.050772]
[1717277678885,2.62177,3814.3,3814.1,0.050772]
[1717277679187,2.62177,3814.3,3814.0,0.708]
[1717277679546,2.62177,3814.3,3814.1,0.0508759]
[1717277679946,2.62177,3814.3,3814.0,0.708]
[1717277680377,2.62177,3814.3,3814.1,0.0508759]
[1717277680775,2.62177,3814.3,3814.0,0.708]
[1717277681158,2.62177,3814.3,3814.1,0.0508759]
[1717277681495,2.62177,3814.3,3814.0,0.708]
[1717277681661,2.62177,3814.3,3814.1,0.0508759]
[1717277681855,2.62177,3814.3,3813.8,0.708]
[1717277682184,2.62185,3814.1,3813.9,0.05089142]
[1717277682485,2.62185,3814.1,3813.1,2.62252]
[1717277682486,2.62185,3814.1,3813.4,0.708]
[1717277682662,2.62185,3814.1,3814.0,0.05085533]
[1717277682865,2.62185,3814.1,3813.4,0.708]
[1717277683187,2.62185,3814.1,3814.0,0.05085533]
[1717277683388,2.62185,3814.1,3813.4,0.708]
[1717277683568,2.62205,3813.8,3813.5,0.708]
[1717277683770,2.62205,3813.8,3813.5,0.75889414]
[1717277685679,2.62205,3813.8,3813.5,0.05089414]
[1717277685680,2.3226,3813.7,3813.5,0.05089414]
[1717277685916,2.3226,3813.7,3812.8,2.62273]
[1717277685917,2.3226,3813.7,3813.2,0.708]
[1717277686120,2.3226,3813.7,3813.3,0.0506302]
[1717277686282,2.3226,3813.7,3813.2,1.5108]
[1717277686487,2.3226,3813.7,3813.3,0.0506302]
[1717277686689,2.3226,3813.7,3813.2,1.5108]
[1717277686690,2.6222,3813.6,3813.2,1.5108]
[1717277686909,2.6222,3813.6,3813.3,0.0506302]
[1717277687106,2.6222,3813.6,3813.2,0.708]
[1717277687295,2.6222,3813.6,3813.3,0.0506302]
[1717277687497,2.6222,3813.6,3813.2,0.708]
[1717277687696,2.6222,3813.6,3813.3,0.0506302]
[1717277687932,2.6222,3813.6,3813.2,0.708]
[1717277688118,2.6222,3813.6,3813.3,0.0506302]
[1717277688424,2.6222,3813.6,3813.2,0.708]
[1717277688723,2.6222,3813.6,3813.3,0.0506302]
[1717277688967,2.6222,3813.6,3813.1,0.708]
[1717277689304,2.6222,3813.6,3813.2,0.05063797]
[1717277689505,2.6222,3813.6,3813.1,0.708]
[1717277689703,2.6222,3813.6,3813.2,0.05063797]
[1717277689923,2.6222,3813.6,3813.1,0.708]
[1717277690123,2.62207,3813.8,3813.5,0.708]
[1717277690340,2.62207,3813.8,3813.6,0.05060691]
[1717277693240,2.62207,3813.8,3813.3,0.708]
[1717277693442,2.62207,3813.8,3813.7,0.05059915]
[1717277693620,2.62207,3813.8,3813.3,0.708]
[1717277694026,2.62207,3813.8,3813.4,0.05062244]
[1717277694424,2.62207,3813.8,3813.3,0.708]
[1717277694639,2.62207,3813.8,3813.5,0.050961]
[1717277694831,2.62226,3813.5,3813.4,0.05096876]
[1717277695444,2.62226,3813.5,3813.3,0.708]
[1717277695611,2.62226,3813.5,3813.4,0.05096876]
[1717277696018,2.62226,3813.5,3813.3,0.708]
[1717277696211,2.62226,3813.5,3813.4,0.05096876]
[1717277696547,2.62226,3813.5,3813.3,0.708]
[1717277696725,2.62226,3813.5,3813.4,0.05096876]
[1717277696927,2.62226,3813.5,3813.3,0.708]
[1717277697128,2.6211,3815.2,3813.4,2.09846876]
[1717277697439,2.62142,3814.8,3813.7,2.0475]
[1717277697636,2.62142,3814.8,3814.7,0.708]
[1717277698025,2.62142,3814.8,3814.7,0.75860971]
[1717277702227,3.0,3815.6,3814.7,0.75860971]
[1717277702228,2.62113,3815.2,3814.7,0.75860971]
[1717277702533,2.62113,3815.2,3814.9,0.708]
[1717277702738,2.62113,3815.2,3815.1,0.708]
[1717277703142,2.62085,3815.6,3815.1,0.75857868]
[1717277706047,2.62085,3815.6,3815.1,0.05057868]
[1717277706366,2.62085,3815.6,3815.1,0.708]
[1717277706530,2.62085,3815.6,3815.2,0.05039468]
[1717277710497,2.62085,3815.6,3815.3,0.708]
[1717277711167,2.62085,3815.6,3815.4,0.04991647]
[1717277711398,2.62085,3815.6,3815.1,0.708]
[1717277711858,2.62085,3815.6,3815.2,0.04993198]
[1717277712481,2.62085,3815.6,3815.2,0.708]
[1717277712656,2.62085,3815.6,3815.3,0.04992423]
[1717277713056,2.62085,3815.6,3815.2,0.708]
[1717277713357,2.62085,3815.6,3815.3,0.04992423]
[1717277713561,2.62085,3815.6,3815.2,0.708]
[1717277713764,2.62085,3815.6,3815.3,0.04992423]
[1717277719168,2.4456,3815.5,3815.0,0.708]
[1717277719369,2.4456,3815.5,3815.1,0.04993974]
[1717277720096,2.62085,3815.6,3815.1,0.04993974]
[1717277723201,2.62104,3815.3,3815.1,0.04993974]
[1717277723408,2.62104,3815.3,3814.9,0.708]
[1717277723604,2.62104,3815.3,3815.2,0.04991625]
[1717277723805,2.62104,3815.3,3814.9,0.708]
[1717277724024,2.62104,3815.3,3815.1,0.708]
[1717277724503,2.62104,3815.3,3815.2,0.04991625]
[1717277725005,2.62104,3815.3,3815.1,0.708]
[1717277725206,2.62104,3815.3,3815.2,0.04991625]
[1717277725380,2.62104,3815.3,3815.1,0.708]
[1717277725577,2.62104,3815.3,3815.2,0.04991625]
[1717277725782,2.62104,3815.3,3815.1,0.708]
[1717277725996,2.62104,3815.3,3815.2,0.04991625]
[1717277726409,2.62104,3815.3,3815.1,0.708]
[1717277726785,2.62104,3815.3,3815.2,0.04991625]
[1717277726983,2.62104,3815.3,3814.9,0.708]
[1717277727184,2.62104,3815.3,3815.0,0.04993177]
[1717277727394,2.62104,3815.3,3815.1,0.708]
[1717277727598,2.62104,3815.3,3815.2,0.04991625]
[1717277727807,2.62104,3815.3,3815.1,0.708]
[1717277728016,2.62104,3815.3,3815.2,0.04991625]
[1717277728617,2.62104,3815.3,3815.1,0.708]
[1717277729082,2.62104,3815.3,3815.2,0.04991625]
[1717277729531,2.62104,3815.3,3815.1,0.708]
[1717277730109,2.62104,3815.3,3815.2,0.04991625]
[1717277730427,2.62104,3815.3,3815.1,0.708]
[1717277730829,2.62104,3815.3,3815.2,0.04991625]
[1717277731488,2.62104,3815.3,3815.1,0.708]
[1717277731907,2.62104,3815.3,3815.2,0.04991625]
[1717277732220,2.62104,3815.3,3815.1,0.708]
[1717277732924,2.62104,3815.3,3815.2,0.04990678]
[1717277733328,2.62104,3815.3,3815.1,0.708]
[1717277733704,2.62104,3815.3,3815.2,0.04990678]
[1717277735516,4.97134,3815.3,3815.2,0.04990678]
[1717277735728,2.62104,3815.3,3815.2,0.04990678]
[1717277735907,2.62104,3815.3,3815.0,0.708]
[1717277736106,2.62104,3815.3,3815.2,0.04965823]
[1717277736301,2.62104,3815.3,3815.1,0.04966598]
[1717277736507,2.62104,3815.3,3815.2,0.04965823]
[1717277737097,2.62104,3815.3,3815.0,0.708]
[1717277737430,2.62104,3815.3,3815.1,0.04966598]
[1717277737734,4.97113,3815.6,3815.1,0.04966598]
[1717277738037,4.97113,3815.6,3815.2,0.708]
[1717277738393,4.97113,3815.6,3815.3,0.04965047]
[1717277738589,4.97113,3815.6,3815.2,0.708]
[1717277738819,4.97113,3815.6,3815.3,0.04965047]
[1717277739093,4.97113,3815.6,3815.2,0.708]
[1717277739425,4.97113,3815.6,3815.3,0.04965047]
[1717277739805,4.97113,3815.6,3815.2,0.708]
[1717277740222,4.97113,3815.6,3815.3,0.04965047]
[1717277740697,4.97113,3815.6,3815.2,0.708]
[1717277740896,4.97113,3815.6,3815.4,0.04964271]
[1717277741297,4.97113,3815.6,3815.2,0.708]
[1717277741499,4.97113,3815.6,3815.5,0.04963496]
[1717277741744,4.97113,3815.6,3815.2,0.708]
[1717277741924,4.97113,3815.6,3815.5,0.04963496]
[1717277742124,4.97113,3815.6,3815.0,0.708]
[1717277742302,4.97113,3815.6,3815.5,0.04963496]
[1717277742725,4.97113,3815.6,3815.2,0.708]
[1717277742920,2.62083,3815.6,3815.5,0.04937701]
[1717277743123,2.62083,3815.6,3815.4,0.708]
[1717277743430,2.62083,3815.6,3815.5,0.04937701]
[1717277747705,2.62062,3815.9,3815.5,0.04937701]
[1717277748039,2.62062,3815.9,3815.4,0.708]
[1717277749551,2.62062,3815.9,3815.5,0.04937701]
[1717277766740,2.62062,3815.9,3815.5,0.75737701]
[1717277775285,2.62062,3815.9,3815.5,0.04937701]
[1717277775710,2.62062,3815.9,3815.3,0.708]
[1717277775984,2.62062,3815.9,3815.6,0.04923401]
[1717277776185,2.62062,3815.9,3815.3,0.708]
[1717277776347,2.62062,3815.9,3815.7,0.04922625]
[1717277776549,2.62062,3815.9,3815.3,0.708]
[1717277776748,2.62062,3815.9,3815.8,0.0492185]
[1717277776953,2.62062,3815.9,3815.3,0.708]
[1717277777278,2.62062,3815.9,3815.4,0.04761815]
[1717277783662,2.62079,3815.7,3815.4,0.04761815]
[1717277790503,2.62079,3815.7,3815.4,0.75561815]
[1717277790672,2.62079,3815.7,3815.0,2.62118]
[1717277790863,2.62079,3815.7,3815.5,0.04727857]
[1717277791975,2.62079,3815.7,3815.4,0.708]
[1717277792366,2.62079,3815.7,3815.5,0.04727857]
[1717277798698,5.02439,3815.7,3815.5,0.04727857]
[1717277799714,2.62079,3815.7,3815.5,0.04727857]
[1717277805701,7.32,3817.0,3815.5,0.04727857]
[1717277806019,0.06574622,3819.5,3816.0,0.708]
[1717277806020,2.62032,3816.4,3816.0,0.708]
[1717277808526,4.88082,3816.4,3815.6,4.66828]
[1717277808827,4.88082,3816.4,3816.0,0.708]
[1717277811628,2.62032,3816.4,3816.0,0.708]
[1717277814732,2.62005,3816.8,3816.2,0.708]
[1717277814888,2.62005,3816.8,3816.1,2.0475]
[1717277815092,2.62005,3816.8,3816.3,0.708]
[1717277815520,2.62005,3816.8,3816.4,0.04624117]
[1717277816233,2.2726,3816.7,3816.4,0.04624117]
[1717277816534,2.62013,3816.6,3816.2,0.708]
[1717277816842,2.62013,3816.6,3816.3,0.04624892]
[1717277816991,2.62013,3816.6,3816.2,0.708]
[1717277817190,2.62013,3816.6,3816.3,0.04624892]
[1717277817392,2.62013,3816.6,3816.2,0.708]
[1717277817629,2.62013,3816.6,3816.3,0.04624892]
[1717277817841,2.62013,3816.6,3816.2,0.708]
[1717277818340,2.62013,3816.6,3816.3,0.04624892]
[1717277818713,2.62013,3816.6,3816.2,0.708]
[1717277819042,2.62013,3816.6,3816.3,0.04624892]
[1717277819200,2.62013,3816.6,3816.2,0.708]
[1717277819399,2.62013,3816.6,3816.3,0.04624892]
[1717277819720,2.62013,3816.6,3816.2,0.708]
[1717277820031,2.62013,3816.6,3816.3,0.04624892]
[1717277820204,2.62013,3816.6,3816.2,0.708]
[1717277820532,2.62013,3816.6,3816.3,0.04624892]
[1717277820834,2.62013,3816.6,3816.2,0.708]
[1717277821133,2.62013,3816.6,3816.3,0.04624892]
[1717277821497,2.62013,3816.6,3816.2,0.708]
[1717277821696,2.62013,3816.6,3816.3,0.04615782]
[1717277821917,2.62013,3816.6,3816.2,0.708]
[1717277822253,2.62013,3816.6,3816.3,0.04615782]
[1717277822411,2.62013,3816.6,3816.2,0.708]
[1717277822618,2.62013,3816.6,3816.3,0.04615782]
[1717277822921,2.62013,3816.6,3816.2,0.708]
[1717277823226,2.62013,3816.6,3816.3,0.04615782]
[1717277823399,2.62013,3816.6,3816.2,0.708]
[1717277823599,2.62013,3816.6,3816.3,0.04615782]
[1717277823834,2.62013,3816.6,3816.2,0.708]
[1717277824012,2.62013,3816.6,3816.3,0.04615782]
[1717277824206,2.62013,3816.6,3816.2,0.708]
[1717277824426,2.62013,3816.6,3816.3,0.04615782]
[1717277825035,2.62013,3816.6,3816.2,0.708]
[1717277825216,2.62013,3816.6,3816.3,0.04615782]
[1717277825409,2.62013,3816.6,3816.2,0.708]
[1717277825613,2.62013,3816.6,3816.3,0.04615782]
[1717277825934,2.62013,3816.6,3816.2,0.708]
[1717277826335,2.62013,3816.6,3816.3,0.04615782]
[1717277826835,2.62013,3816.6,3816.2,0.708]
[1717277827024,2.62013,3816.6,3816.3,0.04615782]
[1717277827227,2.62013,3816.6,3816.2,0.708]
[1717277827540,2.62013,3816.6,3816.3,0.04615782]
[1717277827841,2.62013,3816.6,3816.2,0.708]
[1717277828037,2.62013,3816.6,3816.3,0.04615782]
[1717277828233,2.62013,3816.6,3816.2,0.708]
[1717277828436,2.62013,3816.6,3816.3,0.04615782]
[1717277828735,2.62013,3816.6,3816.2,0.708]
[1717277829044,2.62013,3816.6,3816.3,0.04615782]
[1717277829217,2.62013,3816.6,3816.2,0.708]
[1717277829418,2.62013,3816.6,3816.3,0.04615782]
[1717277829742,2.62013,3816.6,3816.3,0.708]
[1717277834018,2.62013,3816.6,3815.7,0.466825]
[1717277834019,2.88378305,3818.3,3816.6,2.0475]
[1717277834219,2.7159576,3817.9,3817.8,0.708]
[1717277834427,2.7159576,3817.9,3817.8,0.75406357]
[1717277835353,0.0967176,3817.9,3817.8,0.75406357]
[1717277836170,0.0967176,3817.9,3817.8,0.708]
[1717277836322,0.0967176,3817.9,3817.8,0.75383431]
[1717277837058,0.0967176,3817.9,3817.8,0.04583431]
[1717277837219,2.4494176,3817.9,3817.8,0.04583431]
[1717277837424,2.4494176,3817.9,3817.0,0.708]
[1717277837425,2.61962,3817.4,3817.0,0.708]
[1717277837943,2.61962,3817.4,3815.8,2.62064]
[1717277837944,2.3527,3817.3,3815.8,2.62064]
[1717277838145,2.61972,3817.2,3817.1,0.04250618]
[1717277838355,2.62009,3816.7,3816.3,0.708]
[1717277838655,2.62009,3816.7,3816.5,0.708]
[1717277838831,2.62009,3816.7,3816.6,0.04254493]
[1717277839029,2.62009,3816.7,3816.5,0.708]
[1717277840050,2.62009,3816.7,3816.4,0.708]
[1717277842470,2.62009,3816.7,3816.3,0.708]
[1717277843572,2.62009,3816.7,3816.5,0.708]
[1717277848264,2.62009,3816.7,3815.4,4.66841]
[1717277848474,2.62009,3816.7,3816.3,0.708]
[1717277848670,2.62009,3816.7,3816.4,0.04256043]
[1717277848852,2.62009,3816.7,3816.3,0.708]
[1717277849246,2.62009,3816.7,3816.4,0.04308108]
[1717277849571,2.62009,3816.7,3816.3,0.708]
[1717277849881,2.3527,3815.5,3814.1,0.54986392]
[1717277850173,2.3527,3815.5,3814.4,0.708]
[1717277850174,2.62131,3814.9,3814.4,0.708]
[1717277850351,2.62131,3814.9,3814.6,0.708]
[1717277850752,2.62131,3814.9,3814.5,0.708]
[1717277852856,2.62131,3814.9,3814.6,0.03500087]
[1717277853038,2.62131,3814.9,3814.5,0.708]
[1717277853437,2.62131,3814.9,3813.8,0.35723279]
[1717277853438,0.32916927,3817.3,3814.7,2.4992]
[1717277853643,2.61987,3817.0,3816.8,0.708]
[1717277854579,2.61987,3817.0,3815.8,2.62062]
[1717277854787,2.61987,3817.0,3816.6,0.708]
[1717277855437,2.61987,3817.0,3815.9,1.692]
[1717277855637,2.61987,3817.0,3816.0,0.981262]
[1717277855861,2.61987,3817.0,3816.0,1.01615428]
[1717277856846,2.61987,3817.0,3816.1,2.62047]
[1717277857243,2.61987,3817.0,3816.2,0.03487677]
[1717277869491,3.0,3817.5,3816.2,0.03487677]
[1717277869492,5.61954,3817.5,3816.4,2.62024]
[1717277869690,2.61954,3817.5,3816.5,0.26551168]
[1717277869894,2.61954,3817.5,3816.5,0.30014587]
[1717277879729,2.61954,3817.5,3817.1,0.705]
[1717277880022,2.61954,3817.5,3817.2,0.03415134]
[1717277880416,2.61954,3817.5,3817.1,0.705]
[1717277880781,2.61954,3817.5,3817.2,0.03395411]
[1717277881080,2.61954,3817.5,3817.1,0.705]
[1717277881501,2.61954,3817.5,3817.2,0.03395411]
[1717277881813,2.61954,3817.5,3817.1,0.705]
[1717277882183,2.61954,3817.5,3817.2,0.03395411]
[1717277882510,2.61954,3817.5,3817.1,0.705]
[1717277882901,2.61954,3817.5,3817.2,0.03395411]
[1717277883605,2.61954,3817.5,3817.1,0.705]
[1717277883984,2.61954,3817.5,3817.2,0.03395411]
[1717277884282,2.61954,3817.5,3817.1,0.705]
[1717277884813,2.61954,3817.5,3817.2,0.03395411]
[1717277886828,2.61954,3817.5,3817.2,0.73895411]
[1717277886988,2.61954,3817.5,3817.2,0.705]
[1717277887185,2.61954,3817.5,3817.3,0.03384277]
[1717277887625,2.61954,3817.5,3817.2,0.705]
[1717277887999,2.61954,3817.5,3817.3,0.03367397]
[1717277888612,2.61954,3817.5,3817.2,0.705]
[1717277889024,2.61954,3817.5,3817.3,0.03367397]
[1717277889407,2.61954,3817.5,3817.2,0.705]
[1717277889927,2.61954,3817.5,3817.3,0.03367397]
[1717277890291,2.61954,3817.5,3817.2,0.705]
[1717277890496,2.61954,3817.5,3817.3,0.03367397]
[1717277890807,2.61954,3817.5,3817.2,0.705]
[1717277891436,2.61954,3817.5,3817.3,0.03368962]
[1717277891639,2.7160176,3817.9,3817.3,0.03368962]
[1717277891928,0.0967176,3817.9,3817.8,0.705]
[1717277892226,0.0967176,3817.9,3817.8,0.73865715]
[1717277894039,0.0967176,3817.9,3817.8,0.03365715]
[1717277894336,0.0967176,3817.9,3817.8,0.705]
[1717277894712,0.0967176,3817.9,3817.8,0.73865715]
[1717277895624,0.0967176,3817.9,3817.8,0.03365715]
[1717277895935,0.0967176,3817.9,3817.8,0.73865715]
[1717277896230,0.0967176,3817.9,3817.8,0.73851316]
[1717277901531,0.0967176,3817.9,3817.8,0.03351316]
[1717277901879,0.0967176,3817.9,3817.8,0.705]
[1717277902018,0.0967176,3817.9,3817.8,0.03331282]
[1717277902216,0.0967176,3817.9,3817.8,0.73831282]
[1717277906020,0.0967176,3817.9,3817.8,3.22531282]
[1717277906333,0.0967176,3817.9,3817.8,3.5478441]
[1717277907940,0.0967176,3817.9,3817.8,0.03331282]
[1717277908154,0.0967176,3817.9,3817.8,0.705]
[1717277908339,0.0967176,3817.9,3817.8,0.73822906]
[1717277914160,0.0967176,3817.9,3817.8,1.28822906]
[1717277914977,0.0967176,3817.9,3817.8,0.73822906]
[1717277915272,0.0967176,3817.9,3817.8,1.31204997]
[1717277915576,0.0967176,3817.9,3817.8,1.86204997]
[1717277916251,2.55017375,3819.7,3817.8,1.31204997]
[1717277916458,0.05,3821.0,3818.7,2.764]
[1717277916784,0.05,3821.0,3820.1,2.61768]
[1717277916939,0.05,3821.0,3820.2,0.03270843]
[1717277917250,0.05,3821.0,3820.4,0.705]
[1717277917454,0.05,3821.0,3820.4,0.33553884]
[1717277917658,0.05,3821.0,3820.8,0.705]
[1717277917854,0.05,3821.0,3820.5,0.03228487]
[1717277918072,0.05,3821.0,3820.9,0.03225394]
[1717277918248,0.05,3821.0,3820.9,2.61718]
[1717277918454,0.05,3821.0,3820.9,3.16718]
[1717277918648,0.05,3821.0,3820.9,3.90443394]
[1717277919082,0.05,3821.0,3820.9,3.19943394]
[1717277919253,0.05,3821.0,3820.9,0.73725394]
[1717277919583,0.05,3821.0,3820.9,0.03225394]
[1717277919754,0.05,3821.0,3820.6,0.55]
[1717277919959,0.05,3821.0,3820.7,0.03204433]
[1717277920697,0.05,3821.0,3820.4,0.55]
[1717277920881,0.05,3821.0,3820.8,0.0320366]
[1717277921057,0.05,3821.0,3820.4,0.55]